[Event "Titled Tuesday Blitz May 10 Early 2022"]
[White "Baches Garcia, Guillermo"]
[Black "Zemlyanskii, Ivan"]
[WhiteFideId "2209764"]
[BlackFideId "24249971"]
[WhiteElo "2519"]
[BlackElo "1815"]
[Result "1-0"]
[Round "05"]
[TimeControl "180+1"]
[Date "2022.05.11"]
[WhiteClock "0:00:09"]
[BlackClock "0:00:13"]

1. e4 {[%clk 0:03:00]}  c5 {[%clk 0:02:56]} 2. Nf3 {[%clk 0:03:00]}  e6 {[%clk 0:02:53]} 3. c4 {[%clk 0:03:00]}  Nc6 {[%clk 0:02:53]} 4. Nc3 {[%clk 0:03:00]}  Nd4 {[%clk 0:02:53]} 5. Nxd4 {[%clk 0:02:51]}  cxd4 {[%clk 0:02:54]} 6. Nb1 {[%clk 0:02:48]}  e5 {[%clk 0:02:52]} 7. d3 {[%clk 0:02:46]}  Nf6 {[%clk 0:02:49]} 8. Be2 {[%clk 0:02:41]}  Bb4+ {[%clk 0:02:37]} 9. Nd2 {[%clk 0:02:30]}  O-O {[%clk 0:02:34]} 10. O-O {[%clk 0:02:29]}  Be7 {[%clk 0:02:32]} 11. f4 {[%clk 0:02:24]}  d6 {[%clk 0:02:15]} 12. h3 {[%clk 0:02:00]}  Nd7 {[%clk 0:01:53]} 13. Nf3 {[%clk 0:01:55]}  Rb8 {[%clk 0:01:45]} 14. Qe1 {[%clk 0:01:38]}  b5 {[%clk 0:01:42]} 15. cxb5 {[%clk 0:01:29]}  Rxb5 {[%clk 0:01:40]} 16. Qg3 {[%clk 0:01:29]}  f6 {[%clk 0:01:26]} 17. Nh4 {[%clk 0:01:23]}  Nc5 {[%clk 0:01:24]} 18. fxe5 {[%clk 0:01:13]}  dxe5 {[%clk 0:01:21]} 19. Bh6 {[%clk 0:01:11]}  Rf7 {[%clk 0:01:11]} 20. Bh5 {[%clk 0:01:06]}  Qf8 {[%clk 0:01:05]} 21. Nf5 {[%clk 0:00:46]}  Bxf5 {[%clk 0:01:01]} 22. Rxf5 {[%clk 0:00:45]}  Rxb2 {[%clk 0:00:56]} 23. Raf1 {[%clk 0:00:32]}  Kh8 {[%clk 0:00:56]} 24. Bxf7 {[%clk 0:00:29]}  Qxf7 {[%clk 0:00:56]} 25. Bc1 {[%clk 0:00:19]}  Rb1 {[%clk 0:00:56]} 26. Rxe5 {[%clk 0:00:14]}  Rxc1 {[%clk 0:00:47]} 27. Rxe7 {[%clk 0:00:14]}  Rxf1+ {[%clk 0:00:43]} 28. Kxf1 {[%clk 0:00:13]}  Qg8 {[%clk 0:00:43]} 29. Qc7 {[%clk 0:00:11]}  Ne6 {[%clk 0:00:43]} 30. Qd7 {[%clk 0:00:10]}  Nc5 {[%clk 0:00:29]} 31. Qe8 {[%clk 0:00:07]}  Nxd3 {[%clk 0:00:26]} 32. Qxg8+ {[%clk 0:00:07]}  Kxg8 {[%clk 0:00:26]} 33. Rxa7 {[%clk 0:00:07]}  Nc5 {[%clk 0:00:24]} 34. Ke2 {[%clk 0:00:05]}  Nxe4 {[%clk 0:00:22]} 35. Kd3 {[%clk 0:00:05]}  Nd6 {[%clk 0:00:21]} 36. a4 {[%clk 0:00:03]}  Kf8 {[%clk 0:00:18]} 37. Kxd4 {[%clk 0:00:04]}  Ke8 {[%clk 0:00:16]} 38. Kc5 {[%clk 0:00:03]}  Ne4+ {[%clk 0:00:14]} 39. Kb6 {[%clk 0:00:03]}  Nc3 {[%clk 0:00:15]} 40. a5 {[%clk 0:00:02]}  Nd5+ {[%clk 0:00:15]} 41. Kc5 {[%clk 0:00:02]}  Nc3 {[%clk 0:00:14]} 42. Rxg7 {[%clk 0:00:02]}  Ne4+ {[%clk 0:00:15]} 43. Kb6 {[%clk 0:00:02]}  f5 {[%clk 0:00:16]} 44. Rxh7 {[%clk 0:00:02]}  Nd6 {[%clk 0:00:17]} 45. a6 {[%clk 0:00:02]}  Kd8 {[%clk 0:00:16]} 46. a7 {[%clk 0:00:02]}  Nc8+ {[%clk 0:00:15]} 47. Kb7 {[%clk 0:00:02]}  Nxa7 {[%clk 0:00:16]} 48. Kxa7 {[%clk 0:00:03]}  f4 {[%clk 0:00:14]} 49. Rh5 {[%clk 0:00:03]}  Ke8 {[%clk 0:00:15]} 50. Rf5 {[%clk 0:00:03]}  f3 {[%clk 0:00:15]} 51. Rxf3 {[%clk 0:00:04]}  Ke7 {[%clk 0:00:13]} 52. h4 {[%clk 0:00:05]}  Ke6 {[%clk 0:00:13]} 53. h5 {[%clk 0:00:06]}  Ke5 {[%clk 0:00:14]} 54. h6 {[%clk 0:00:06]}  Ke4 {[%clk 0:00:14]} 55. Rf1 {[%clk 0:00:07]}  Kd4 {[%clk 0:00:14]} 56. h7 {[%clk 0:00:08]}  Ke3 {[%clk 0:00:13]} 57. Rf8 {[%clk 0:00:09]} 1-0


[Site "https://www.chess.com"]

[Event "Titled Tuesday Blitz May 10 Early 2022"]
[White "Bacrot, Etienne"]
[Black "Bluebaum, Matthias"]
[WhiteFideId "605506"]
[BlackFideId "24651516"]
[WhiteElo "2673"]
[BlackElo "2556"]
[Result "1-0"]
[Round "05"]
[TimeControl "180+1"]
[Date "2022.05.10"]
[WhiteClock "0:00:09"]
[BlackClock "0:00:06"]

1. e4 {[%clk 0:03:00]}  c6 {[%clk 0:02:59]} 2. Nf3 {[%clk 0:03:00]}  d5 {[%clk 0:03:00]} 3. Nc3 {[%clk 0:03:00]}  dxe4 {[%clk 0:02:58]} 4. Nxe4 {[%clk 0:03:01]}  Nf6 {[%clk 0:02:59]} 5. Qe2 {[%clk 0:03:02]}  Nxe4 {[%clk 0:03:00]} 6. Qxe4 {[%clk 0:03:02]}  Qa5 {[%clk 0:03:01]} 7. b4 {[%clk 0:03:00]}  Qd5 {[%clk 0:02:59]} 8. Qe3 {[%clk 0:02:53]}  Bf5 {[%clk 0:02:57]} 9. c4 {[%clk 0:02:47]}  Qe4 {[%clk 0:02:57]} 10. Bb2 {[%clk 0:02:41]}  e6 {[%clk 0:02:56]} 11. a3 {[%clk 0:02:37]}  a5 {[%clk 0:02:56]} 12. b5 {[%clk 0:02:32]}  cxb5 {[%clk 0:02:55]} 13. cxb5 {[%clk 0:02:32]}  Nd7 {[%clk 0:02:51]} 14. Rc1 {[%clk 0:02:26]}  Bc5 {[%clk 0:02:28]} 15. Qxe4 {[%clk 0:02:16]}  Bxe4 {[%clk 0:02:29]} 16. Bxg7 {[%clk 0:02:11]}  Bxa3 {[%clk 0:02:28]} 17. Ra1 {[%clk 0:01:47]}  Rg8 {[%clk 0:02:21]} 18. Bc3 {[%clk 0:01:47]}  Bd6 {[%clk 0:01:57]} 19. Rxa5 {[%clk 0:01:46]}  Rxa5 {[%clk 0:01:57]} 20. Bxa5 {[%clk 0:01:46]}  Ke7 {[%clk 0:01:58]} 21. Bc3 {[%clk 0:01:45]}  Nc5 {[%clk 0:01:54]} 22. h4 {[%clk 0:01:32]}  Nd3+ {[%clk 0:01:47]} 23. Ke2 {[%clk 0:01:22]}  Bc5 {[%clk 0:01:40]} 24. Ng5 {[%clk 0:01:16]}  Bf5 {[%clk 0:01:02]} 25. g4 {[%clk 0:01:05]}  Nxf2 {[%clk 0:00:52]} 26. gxf5 {[%clk 0:01:04]}  Nxh1 {[%clk 0:00:53]} 27. f6+ {[%clk 0:01:04]}  Ke8 {[%clk 0:00:50]} 28. Kf3 {[%clk 0:00:33]}  Nf2 {[%clk 0:00:48]} 29. b6 {[%clk 0:00:29]}  Rxg5 {[%clk 0:00:27]} 30. hxg5 {[%clk 0:00:28]}  Bxb6 {[%clk 0:00:28]} 31. d4 {[%clk 0:00:14]}  Nd1 {[%clk 0:00:26]} 32. Bb5+ {[%clk 0:00:13]}  Kf8 {[%clk 0:00:26]} 33. Bb4+ {[%clk 0:00:13]}  Kg8 {[%clk 0:00:26]} 34. Ke2 {[%clk 0:00:11]}  Bxd4 {[%clk 0:00:18]} 35. Kxd1 {[%clk 0:00:11]}  Be3 {[%clk 0:00:09]} 36. Bd2 {[%clk 0:00:11]}  Bxd2 {[%clk 0:00:10]} 37. Kxd2 {[%clk 0:00:11]}  h6 {[%clk 0:00:11]} 38. gxh6 {[%clk 0:00:08]}  Kh7 {[%clk 0:00:11]} 39. Ke3 {[%clk 0:00:07]}  Kxh6 {[%clk 0:00:04]} 40. Kf4 {[%clk 0:00:07]}  Kg6 {[%clk 0:00:04]} 41. Ke5 {[%clk 0:00:08]}  b6 {[%clk 0:00:05]} 42. Be8 {[%clk 0:00:08]}  b5 {[%clk 0:00:05]} 43. Bxb5 {[%clk 0:00:09]}  Kg5 {[%clk 0:00:05]} 44. Bd7 {[%clk 0:00:09]}  Kg6 {[%clk 0:00:06]} 45. Bxe6 {[%clk 0:00:09]} 1-0


[Site "https://www.chess.com"]

[Event "Titled Tuesday Blitz May 10 Early 2022"]
[White "Bai, Adelard"]
[Black "Czerw, Dawid"]
[WhiteFideId "16301188"]
[BlackFideId "1145746"]
[WhiteElo "2120"]
[BlackElo "2125"]
[Result "0-1"]
[Round "05"]
[TimeControl "180+1"]
[Date "2022.05.11"]
[WhiteClock "0:00:03"]
[BlackClock "0:00:04"]

1. Nf3 {[%clk 0:03:00]}  c5 {[%clk 0:02:59]} 2. g3 {[%clk 0:02:57]}  Nc6 {[%clk 0:02:57]} 3. Bg2 {[%clk 0:02:57]}  g6 {[%clk 0:02:57]} 4. O-O {[%clk 0:02:51]}  Bg7 {[%clk 0:02:57]} 5. d3 {[%clk 0:02:52]}  d5 {[%clk 0:02:48]} 6. Nbd2 {[%clk 0:02:50]}  e6 {[%clk 0:02:49]} 7. e4 {[%clk 0:02:47]}  Nge7 {[%clk 0:02:48]} 8. c3 {[%clk 0:02:46]}  b6 {[%clk 0:02:48]} 9. Qe2 {[%clk 0:02:44]}  a5 {[%clk 0:02:47]} 10. Rd1 {[%clk 0:02:40]}  a4 {[%clk 0:02:43]} 11. a3 {[%clk 0:02:38]}  Ba6 {[%clk 0:02:28]} 12. h4 {[%clk 0:02:31]}  h5 {[%clk 0:02:23]} 13. Ng5 {[%clk 0:02:28]}  d4 {[%clk 0:01:50]} 14. c4 {[%clk 0:02:22]}  e5 {[%clk 0:01:42]} 15. f4 {[%clk 0:02:14]}  Bc8 {[%clk 0:01:38]} 16. f5 {[%clk 0:01:59]}  f6 {[%clk 0:01:14]} 17. Ne6 {[%clk 0:01:43]}  Bxe6 {[%clk 0:01:12]} 18. fxe6 {[%clk 0:01:30]}  Qd6 {[%clk 0:01:12]} 19. Bh3 {[%clk 0:01:31]}  Nd8 {[%clk 0:01:05]} 20. b3 {[%clk 0:01:21]}  Nxe6 {[%clk 0:00:58]} 21. Rb1 {[%clk 0:01:16]}  Bh6 {[%clk 0:00:53]} 22. Nf3 {[%clk 0:01:10]}  Bxc1 {[%clk 0:00:45]} 23. Rdxc1 {[%clk 0:01:00]}  g5 {[%clk 0:00:36]} 24. Bf5 {[%clk 0:00:42]}  Ng7 {[%clk 0:00:25]} 25. hxg5 {[%clk 0:00:39]}  fxg5 {[%clk 0:00:22]} 26. Nxg5 {[%clk 0:00:35]}  Qf6 {[%clk 0:00:22]} 27. Nf3 {[%clk 0:00:31]}  Rg8 {[%clk 0:00:19]} 28. Nh4 {[%clk 0:00:24]}  Ngxf5 {[%clk 0:00:18]} 29. Qxh5+ {[%clk 0:00:24]}  Kd7 {[%clk 0:00:16]} 30. exf5 {[%clk 0:00:23]}  Rxg3+ {[%clk 0:00:15]} 31. Kh2 {[%clk 0:00:20]}  Rxd3 {[%clk 0:00:13]} 32. Ng6 {[%clk 0:00:07]}  Nxg6 {[%clk 0:00:13]} 33. Qxg6 {[%clk 0:00:06]}  Qh4+ {[%clk 0:00:09]} 34. Kg2 {[%clk 0:00:07]}  Qh3+ {[%clk 0:00:09]} 35. Kf2 {[%clk 0:00:06]}  Qf3+ {[%clk 0:00:05]} 36. Kg1 {[%clk 0:00:05]}  Qe3+ {[%clk 0:00:03]} 37. Kf1 {[%clk 0:00:05]}  Qf4+ {[%clk 0:00:03]} 38. Kg2 {[%clk 0:00:02]}  Rd2+ {[%clk 0:00:03]} 39. Kg1 {[%clk 0:00:02]}  Qf2+ {[%clk 0:00:03]} 40. Kh1 {[%clk 0:00:03]}  Qh2# {[%clk 0:00:04]} 0-1


[Site "https://www.chess.com"]

[Event "Titled Tuesday Blitz May 10 Early 2022"]
[White "Bashirli, Saadat"]
[Black "Saldano Dayer, Horacio"]
[WhiteFideId "13429990"]
[BlackFideId "103411"]
[WhiteElo "1173"]
[BlackElo "2419"]
[Result "0-1"]
[Round "05"]
[TimeControl "180+1"]
[Date "2022.05.11"]
[WhiteClock "0:00:07"]
[BlackClock "0:00:16"]

1. e4 {[%clk 0:03:00]}  e6 {[%clk 0:03:00]} 2. d4 {[%clk 0:02:57]}  d5 {[%clk 0:02:59]} 3. Nc3 {[%clk 0:02:55]}  Bb4 {[%clk 0:02:59]} 4. Ne2 {[%clk 0:02:55]}  Nf6 {[%clk 0:02:55]} 5. e5 {[%clk 0:02:52]}  Ne4 {[%clk 0:02:55]} 6. Bd2 {[%clk 0:02:51]}  Nxd2 {[%clk 0:02:48]} 7. Qxd2 {[%clk 0:02:50]}  O-O {[%clk 0:02:43]} 8. a3 {[%clk 0:02:34]}  Be7 {[%clk 0:02:42]} 9. g3 {[%clk 0:02:10]}  c5 {[%clk 0:02:41]} 10. Bg2 {[%clk 0:02:08]}  Nc6 {[%clk 0:02:40]} 11. O-O {[%clk 0:02:05]}  cxd4 {[%clk 0:02:39]} 12. Nxd4 {[%clk 0:02:04]}  Nxe5 {[%clk 0:02:39]} 13. Rae1 {[%clk 0:02:04]}  Nc4 {[%clk 0:02:37]} 14. Qc1 {[%clk 0:02:02]}  Bf6 {[%clk 0:02:35]} 15. Nb3 {[%clk 0:01:51]}  Bd7 {[%clk 0:02:20]} 16. Nd2 {[%clk 0:01:36]}  Bg5 {[%clk 0:01:51]} 17. f4 {[%clk 0:01:35]}  Qb6+ {[%clk 0:01:51]} 18. Kh1 {[%clk 0:01:34]}  Nxd2 {[%clk 0:01:51]} 19. Qxd2 {[%clk 0:01:33]}  Bf6 {[%clk 0:01:51]} 20. f5 {[%clk 0:01:10]}  Qxb2 {[%clk 0:01:47]} 21. Ne2 {[%clk 0:01:09]}  Rac8 {[%clk 0:01:42]} 22. fxe6 {[%clk 0:01:01]}  fxe6 {[%clk 0:01:37]} 23. Qe3 {[%clk 0:00:53]}  Rxc2 {[%clk 0:01:31]} 24. Nf4 {[%clk 0:00:47]}  Bg5 {[%clk 0:01:18]} 25. Qf3 {[%clk 0:00:45]}  Bxf4 {[%clk 0:01:14]} 26. gxf4 {[%clk 0:00:45]}  d4 {[%clk 0:00:42]} 27. Qe4 {[%clk 0:00:36]}  Rxg2 {[%clk 0:00:35]} 28. Qxg2 {[%clk 0:00:28]}  Bc6 {[%clk 0:00:35]} 29. Rf3 {[%clk 0:00:29]}  Qxg2+ {[%clk 0:00:31]} 30. Kxg2 {[%clk 0:00:28]}  Rxf4 {[%clk 0:00:32]} 31. Rxe6 {[%clk 0:00:26]}  Bxf3+ {[%clk 0:00:27]} 32. Kg3 {[%clk 0:00:25]}  Rf8 {[%clk 0:00:27]} 33. Re7 {[%clk 0:00:24]}  Bc6 {[%clk 0:00:26]} 34. Re1 {[%clk 0:00:23]}  Rd8 {[%clk 0:00:25]} 35. Rd1 {[%clk 0:00:23]}  d3 {[%clk 0:00:25]} 36. Rd2 {[%clk 0:00:19]}  b5 {[%clk 0:00:24]} 37. Kf4 {[%clk 0:00:14]}  a5 {[%clk 0:00:24]} 38. Ke3 {[%clk 0:00:13]}  b4 {[%clk 0:00:24]} 39. axb4 {[%clk 0:00:13]}  axb4 {[%clk 0:00:25]} 40. Rb2 {[%clk 0:00:10]}  d2 {[%clk 0:00:24]} 41. Rxd2 {[%clk 0:00:09]}  Rxd2 {[%clk 0:00:23]} 42. Kxd2 {[%clk 0:00:07]}  Bd5 {[%clk 0:00:23]} 43. Kc2 {[%clk 0:00:06]}  g5 {[%clk 0:00:23]} 44. Kb2 {[%clk 0:00:06]}  h5 {[%clk 0:00:22]} 45. h4 {[%clk 0:00:06]}  gxh4 {[%clk 0:00:21]} 46. Kc2 {[%clk 0:00:06]}  h3 {[%clk 0:00:21]} 47. Kd3 {[%clk 0:00:06]}  h2 {[%clk 0:00:21]} 48. Kd4 {[%clk 0:00:07]}  h1=Q {[%clk 0:00:19]} 49. Kc5 {[%clk 0:00:08]}  b3 {[%clk 0:00:18]} 50. Kb6 {[%clk 0:00:08]}  b2 {[%clk 0:00:18]} 51. Kc5 {[%clk 0:00:08]}  b1=Q {[%clk 0:00:17]} 52. Kd6 {[%clk 0:00:09]}  Qb6+ {[%clk 0:00:17]} 53. Ke5 {[%clk 0:00:07]}  Qe4# {[%clk 0:00:16]} 0-1


[Site "https://www.chess.com"]

[Event "Titled Tuesday Blitz May 10 Early 2022"]
[White "Bettalli, Francesco"]
[Black "De Souza, Cristiano Gomes"]
[WhiteFideId "2816453"]
[BlackFideId "2151758"]
[WhiteElo "2216"]
[BlackElo "2068"]
[Result "1-0"]
[Round "05"]
[TimeControl "180+1"]
[Date "2022.05.11"]
[WhiteClock "0:02:13"]
[BlackClock "0:02:04"]

1. d4 {[%clk 0:03:00]}  Nf6 {[%clk 0:02:39]} 2. Nc3 {[%clk 0:02:58]}  g6 {[%clk 0:02:39]} 3. e4 {[%clk 0:02:55]}  d6 {[%clk 0:02:40]} 4. Bf4 {[%clk 0:02:54]}  c6 {[%clk 0:02:39]} 5. Qd2 {[%clk 0:02:54]}  h6 {[%clk 0:02:39]} 6. O-O-O {[%clk 0:02:54]}  b5 {[%clk 0:02:37]} 7. e5 {[%clk 0:02:51]}  b4 {[%clk 0:02:37]} 8. exf6 {[%clk 0:02:50]}  bxc3 {[%clk 0:02:36]} 9. Qxc3 {[%clk 0:02:50]}  exf6 {[%clk 0:02:34]} 10. d5 {[%clk 0:02:45]}  cxd5 {[%clk 0:02:31]} 11. Re1+ {[%clk 0:02:44]}  Be6 {[%clk 0:02:27]} 12. Bb5+ {[%clk 0:02:43]}  Nd7 {[%clk 0:02:26]} 13. Nf3 {[%clk 0:02:37]}  Bg7 {[%clk 0:02:25]} 14. Nd4 {[%clk 0:02:37]}  f5 {[%clk 0:02:21]} 15. Bxd6 {[%clk 0:02:31]}  Qf6 {[%clk 0:02:07]} 16. Bxd7+ {[%clk 0:02:18]}  Kxd7 {[%clk 0:02:04]} 17. Qc6+ {[%clk 0:02:13]} 1-0


[Site "https://www.chess.com"]

[Event "Titled Tuesday Blitz May 10 Early 2022"]
[White "Bifulco, Michel"]
[Black "Plotnikov, Pavel"]
[WhiteFideId "828580"]
[BlackFideId "4170342"]
[WhiteElo "2165"]
[BlackElo "2298"]
[Result "1-0"]
[Round "05"]
[TimeControl "180+1"]
[Date "2022.05.11"]
[WhiteClock "0:00:06"]
[BlackClock "0:00:15"]

1. d4 {[%clk 0:03:00]}  Nf6 {[%clk 0:02:59]} 2. Nc3 {[%clk 0:03:01]}  g6 {[%clk 0:02:59]} 3. e4 {[%clk 0:03:00]}  d6 {[%clk 0:02:59]} 4. Be3 {[%clk 0:02:59]}  Nbd7 {[%clk 0:02:57]} 5. Qd2 {[%clk 0:02:59]}  e5 {[%clk 0:02:56]} 6. O-O-O {[%clk 0:02:58]}  Bg7 {[%clk 0:02:55]} 7. f3 {[%clk 0:02:56]}  h5 {[%clk 0:02:54]} 8. Nge2 {[%clk 0:02:56]}  Qe7 {[%clk 0:02:47]} 9. h4 {[%clk 0:02:55]}  a6 {[%clk 0:02:44]} 10. Rg1 {[%clk 0:02:49]}  b5 {[%clk 0:02:43]} 11. Kb1 {[%clk 0:02:39]}  Nb6 {[%clk 0:02:43]} 12. dxe5 {[%clk 0:02:29]}  Nc4 {[%clk 0:02:40]} 13. Qc1 {[%clk 0:02:23]}  dxe5 {[%clk 0:02:32]} 14. Bg5 {[%clk 0:02:23]}  c6 {[%clk 0:02:28]} 15. f4 {[%clk 0:01:57]}  Bd7 {[%clk 0:02:25]} 16. f5 {[%clk 0:01:54]}  gxf5 {[%clk 0:02:19]} 17. Ng3 {[%clk 0:01:50]}  O-O-O {[%clk 0:02:13]} 18. Nxf5 {[%clk 0:01:48]}  Bxf5 {[%clk 0:02:14]} 19. Bxc4 {[%clk 0:01:43]}  Rxd1 {[%clk 0:01:52]} 20. Rxd1 {[%clk 0:01:36]}  Bg4 {[%clk 0:01:53]} 21. Be2 {[%clk 0:01:35]}  Bxe2 {[%clk 0:01:53]} 22. Nxe2 {[%clk 0:01:35]}  Qe6 {[%clk 0:01:52]} 23. Qe3 {[%clk 0:01:32]}  Nd7 {[%clk 0:01:44]} 24. Qa7 {[%clk 0:01:26]}  c5 {[%clk 0:01:39]} 25. Nc3 {[%clk 0:01:22]}  f6 {[%clk 0:01:33]} 26. Be3 {[%clk 0:01:13]}  Qc6 {[%clk 0:01:28]} 27. Nd5 {[%clk 0:01:11]}  Re8 {[%clk 0:01:27]} 28. c4 {[%clk 0:00:31]}  b4 {[%clk 0:01:17]} 29. a3 {[%clk 0:00:10]}  bxa3 {[%clk 0:01:15]} 30. bxa3 {[%clk 0:00:10]}  Bf8 {[%clk 0:01:15]} 31. Rd2 {[%clk 0:00:11]}  Qb7+ {[%clk 0:01:13]} 32. Qxb7+ {[%clk 0:00:10]}  Kxb7 {[%clk 0:01:14]} 33. Rb2+ {[%clk 0:00:10]}  Kc6 {[%clk 0:01:13]} 34. Kc1 {[%clk 0:00:10]}  Bd6 {[%clk 0:01:10]} 35. Kd2 {[%clk 0:00:09]}  Rg8 {[%clk 0:01:10]} 36. Kd3 {[%clk 0:00:09]}  Rf8 {[%clk 0:00:59]} 37. Rf2 {[%clk 0:00:09]}  Rb8 {[%clk 0:00:55]} 38. Kc3 {[%clk 0:00:09]}  Rg8 {[%clk 0:00:46]} 39. Nxf6 {[%clk 0:00:07]}  Nxf6 {[%clk 0:00:46]} 40. Rxf6 {[%clk 0:00:08]}  Rxg2 {[%clk 0:00:41]} 41. Rf5 {[%clk 0:00:07]}  Ra2 {[%clk 0:00:34]} 42. Rxh5 {[%clk 0:00:07]}  Rxa3+ {[%clk 0:00:34]} 43. Kd2 {[%clk 0:00:07]}  Bc7 {[%clk 0:00:30]} 44. Rh6+ {[%clk 0:00:07]}  Kd7 {[%clk 0:00:29]} 45. Bxc5 {[%clk 0:00:07]}  Rh3 {[%clk 0:00:27]} 46. Rh7+ {[%clk 0:00:06]}  Kc6 {[%clk 0:00:26]} 47. Be3 {[%clk 0:00:06]}  Ba5+ {[%clk 0:00:26]} 48. Kd3 {[%clk 0:00:06]}  Bb6 {[%clk 0:00:26]} 49. Rh6+ {[%clk 0:00:07]}  Kc7 {[%clk 0:00:22]} 50. Rxb6 {[%clk 0:00:08]}  a5 {[%clk 0:00:15]} 51. Ra6 {[%clk 0:00:07]}  Rxh4 {[%clk 0:00:14]} 52. Rxa5 {[%clk 0:00:08]}  Kd6 {[%clk 0:00:14]} 53. c5+ {[%clk 0:00:07]}  Kc6 {[%clk 0:00:14]} 54. Ra6+ {[%clk 0:00:07]}  Kb7 {[%clk 0:00:13]} 55. Re6 {[%clk 0:00:07]}  Rh5 {[%clk 0:00:13]} 56. Kc4 {[%clk 0:00:07]}  Rh3 {[%clk 0:00:12]} 57. Kd3 {[%clk 0:00:06]}  Rh1 {[%clk 0:00:11]} 58. Rxe5 {[%clk 0:00:06]}  Rd1+ {[%clk 0:00:11]} 59. Kc4 {[%clk 0:00:07]}  Re1 {[%clk 0:00:12]} 60. Bd4 {[%clk 0:00:07]}  Kc6 {[%clk 0:00:12]} 61. Re6+ {[%clk 0:00:07]}  Kd7 {[%clk 0:00:13]} 62. Kd5 {[%clk 0:00:07]}  Kc7 {[%clk 0:00:14]} 63. Re7+ {[%clk 0:00:08]}  Kd8 {[%clk 0:00:14]} 64. Rh7 {[%clk 0:00:07]}  Rg1 {[%clk 0:00:14]} 65. Be5 {[%clk 0:00:07]}  Rg6 {[%clk 0:00:15]} 66. c6 {[%clk 0:00:07]}  Rg8 {[%clk 0:00:14]} 67. Ra7 {[%clk 0:00:05]}  Kc8 {[%clk 0:00:15]} 68. Ra8# {[%clk 0:00:06]} 1-0


[Site "https://www.chess.com"]

[Event "Titled Tuesday Blitz May 10 Early 2022"]
[White "Bintang, Rasyid A. Hidayat"]
[Black "Agasarov, Benik"]
[WhiteFideId "7105355"]
[BlackFideId "13314823"]
[WhiteElo "2450"]
[BlackElo "2573"]
[Result "0-1"]
[Round "05"]
[TimeControl "180+1"]
[Date "2022.05.11"]
[WhiteClock "0:00:19"]
[BlackClock "0:00:20"]

1. d4 {[%clk 0:03:00]}  d5 {[%clk 0:02:57]} 2. Bf4 {[%clk 0:03:01]}  e6 {[%clk 0:02:55]} 3. e3 {[%clk 0:03:01]}  c5 {[%clk 0:02:55]} 4. Nd2 {[%clk 0:03:00]}  Bd6 {[%clk 0:02:52]} 5. Bg3 {[%clk 0:02:57]}  Nc6 {[%clk 0:02:51]} 6. c3 {[%clk 0:02:57]}  Nge7 {[%clk 0:02:49]} 7. Ngf3 {[%clk 0:02:57]}  Nf5 {[%clk 0:02:49]} 8. Bd3 {[%clk 0:02:56]}  Nxg3 {[%clk 0:02:49]} 9. hxg3 {[%clk 0:02:57]}  h6 {[%clk 0:02:49]} 10. g4 {[%clk 0:02:52]}  g6 {[%clk 0:02:21]} 11. Qc2 {[%clk 0:02:41]}  Qf6 {[%clk 0:02:13]} 12. g5 {[%clk 0:02:34]}  Qg7 {[%clk 0:02:10]} 13. gxh6 {[%clk 0:02:30]}  Rxh6 {[%clk 0:02:09]} 14. Rxh6 {[%clk 0:02:29]}  Qxh6 {[%clk 0:02:08]} 15. O-O-O {[%clk 0:02:28]}  cxd4 {[%clk 0:02:06]} 16. exd4 {[%clk 0:02:27]}  Bd7 {[%clk 0:01:55]} 17. Kb1 {[%clk 0:02:17]}  Rc8 {[%clk 0:01:53]} 18. Bb5 {[%clk 0:01:53]}  Kf8 {[%clk 0:01:44]} 19. Bxc6 {[%clk 0:01:51]}  Bxc6 {[%clk 0:01:43]} 20. Qc1 {[%clk 0:01:45]}  Kg7 {[%clk 0:01:43]} 21. Rh1 {[%clk 0:01:45]}  Qf4 {[%clk 0:01:42]} 22. g3 {[%clk 0:01:39]}  Qf5+ {[%clk 0:01:41]} 23. Ka1 {[%clk 0:01:39]}  Qd3 {[%clk 0:01:38]} 24. Ng5 {[%clk 0:01:31]}  Kf6 {[%clk 0:00:55]} 25. Nh7+ {[%clk 0:01:12]}  Ke7 {[%clk 0:00:53]} 26. Nb3 {[%clk 0:01:01]}  Qf5 {[%clk 0:00:51]} 27. f4 {[%clk 0:00:51]}  Ba4 {[%clk 0:00:49]} 28. Ng5 {[%clk 0:00:41]}  Bxb3 {[%clk 0:00:46]} 29. axb3 {[%clk 0:00:42]}  Rc6 {[%clk 0:00:46]} 30. Qf1 {[%clk 0:00:25]}  Ra6+ {[%clk 0:00:45]} 31. Qxa6 {[%clk 0:00:26]}  bxa6 {[%clk 0:00:46]} 32. Rh7 {[%clk 0:00:26]}  Kf8 {[%clk 0:00:31]} 33. Rxf7+ {[%clk 0:00:18]}  Qxf7 {[%clk 0:00:30]} 34. Nxf7 {[%clk 0:00:19]}  Kxf7 {[%clk 0:00:31]} 35. Kb1 {[%clk 0:00:19]}  Kf6 {[%clk 0:00:31]} 36. Kc2 {[%clk 0:00:19]}  a5 {[%clk 0:00:28]} 37. Kd3 {[%clk 0:00:19]}  Kf5 {[%clk 0:00:27]} 38. Ke3 {[%clk 0:00:19]}  Kg4 {[%clk 0:00:27]} 39. Kf2 {[%clk 0:00:19]}  a6 {[%clk 0:00:26]} 40. c4 {[%clk 0:00:19]}  Be7 {[%clk 0:00:20]} 41. c5 {[%clk 0:00:19]}  Bf6 {[%clk 0:00:20]} 42. c6 {[%clk 0:00:18]}  Bxd4+ {[%clk 0:00:19]} 43. Ke2 {[%clk 0:00:19]}  Bb6 {[%clk 0:00:20]} 0-1


[Site "https://www.chess.com"]